fUSD/lending_fUSD_20240213
["ID","MTS","AMOUNT","RATE_DAILY","PERIOD"]
[313920854,1707823865691,-656.5,0.00033177,2]
[313920855,1707823865700,-1750.39,0.00033177,2]
[313920856,1707823865709,-1786.42,0.00033177,2]
[313920857,1707823865718,-500.0,0.00033177,2]
[313920858,1707823865728,-799.68,0.00033177,2]
[313920859,1707823865738,-500.0,0.00033177,2]
[313920860,1707823865748,-650.86,0.00033177,2]
[313920861,1707823865757,-500.0,0.00033177,2]
[313920862,1707823865767,-1873.71,0.00033177,2]
[313920863,1707823865776,-1445.49,0.00033177,2]
[313920864,1707823865786,-500.0,0.00033177,2]
[313920865,1707823865796,-552.15,0.00033177,2]
[313920866,1707823865805,-500.0,0.00033177,2]
[313920867,1707823865815,-500.0,0.00033177,2]
[313920868,1707823865824,-500.55,0.00033177,2]
[313920869,1707823865834,-544.89,0.00033177,2]
[313920870,1707823865843,-1167.13,0.00033177,2]
[313920871,1707823865853,-500.0,0.00033177,2]
[313920872,1707823865863,-1691.15,0.00033177,2]
[313920873,1707823865872,-500.0,0.00033177,2]
[313920874,1707823865882,-525.08,0.00033177,2]
[313920875,1707823865891,-1396.74,0.00033177,2]
[313920876,1707823865900,-1050.85,0.00033177,2]
[313920877,1707823865909,-562.43,0.00033177,2]
[313920878,1707823865919,-2526.49,0.00033177,2]
[313920879,1707823865928,-587.49,0.00033177,2]
[313920880,1707823865938,-500.0,0.00033177,2]
[313920881,1707823865947,-175.03776557,0.00033177,2]
[313920882,1707823865956,-22013.21,0.00033177,2]
[313920883,1707823865965,-500.0,0.00033177,2]
[313920884,1707823865975,-500.0,0.00033177,2]
[313920885,1707823865984,-980.47,0.00033177,2]
[313920886,1707823865993,-500.0,0.00033177,2]
[313920887,1707823866003,-500.0,0.00033177,2]
[313920888,1707823866011,-1644.37,0.00033177,2]
[313920889,1707823866020,-4024.1,0.00033177,2]
[313920890,1707823866030,-504.78,0.00033177,2]
[313920891,1707823866039,-563.36,0.00033177,2]
[313920892,1707823866049,-538.99,0.00033177,2]
[313920893,1707823866059,-500.0,0.00033177,2]
[313920894,1707823866069,-1049.6,0.00033177,2]
[313920895,1707823866078,-513.64,0.00033177,2]
[313920896,1707823866089,-1057.39,0.00033177,2]
[313920897,1707823866098,-5324.85421294,0.000333,15]
[313920898,1707823866108,-720.1,0.00033324,2]
[313920899,1707823866119,-1133.91,0.00033324,2]
[313920900,1707823866129,-500.0,0.00033324,2]
[313920901,1707823866138,-562.4,0.00033324,2]
[313920902,1707823866148,-5000.0,0.00033424,4]
[313920903,1707823866158,-1000.0,0.00033424,4]
[313920904,1707823866168,-541.25,0.00033451,2]
[313920905,1707823866178,-1228.16,0.00033451,2]
[313920906,1707823866188,-1025.19,0.00033451,2]
[313920907,1707823866198,-500.0,0.00033451,2]
[313920908,1707823866207,-1474.43,0.00033451,2]
[313920909,1707823866217,-835.02,0.00033451,2]
[313920910,1707823866227,-714.04,0.00033451,2]
[313920911,1707823866237,-500.0,0.00033451,2]
[313920912,1707823866247,-1562.04,0.00033451,2]
[313920913,1707823866257,-1088.36,0.00033451,2]
[313920914,1707823866267,-500.0,0.00033451,2]
[313920915,1707823866276,-682.24,0.00033451,2]
[313920916,1707823866286,-656.5,0.00033451,2]
[313920917,1707823866296,-1750.39,0.00033451,2]
[313920918,1707823866305,-1786.42,0.00033451,2]
[313920919,1707823866314,-500.0,0.00033451,2]
[313920920,1707823866325,-799.68,0.00033451,2]
[313920921,1707823866335,-500.0,0.00033451,2]
[313920922,1707823866344,-650.86,0.00033451,2]
[313920923,1707823866355,-500.0,0.00033451,2]
[313920924,1707823866368,-1873.71,0.00033451,2]
[313920925,1707823866377,-1445.49,0.00033451,2]
[313920926,1707823866386,-500.0,0.00033451,2]
[313920927,1707823866396,-552.15,0.00033451,2]
[313920928,1707823866406,-500.0,0.00033451,2]
[313920929,1707823866416,-535.31345216,0.00033451,2]
[313920930,1707823866425,-500.55,0.00033451,2]
[313920931,1707823866436,-544.89,0.00033451,2]
[313920932,1707823866445,-1167.13,0.00033451,2]
[313920933,1707823866455,-500.0,0.00033451,2]
[313920934,1707823866465,-1691.15,0.00033451,2]
[313920935,1707823866474,-500.0,0.00033451,2]
[313920936,1707823866483,-525.08,0.00033451,2]
[313920937,1707823866492,-1396.74,0.00033451,2]
[313920938,1707823866501,-1050.85,0.00033451,2]
[313920939,1707823866511,-562.43,0.00033451,2]
[313920940,1707823866520,-2526.49,0.00033451,2]
[313920941,1707823866530,-587.49,0.00033451,2]
[313920942,1707823866539,-500.0,0.00033451,2]
[313920943,1707823866549,-22013.21,0.00033451,2]
[313920944,1707823866559,-291.32115303,0.00033451,2]
[313920945,1707823866568,-500.0,0.00033451,2]
[313920946,1707823866578,-980.47,0.00033451,2]
[313920947,1707823866588,-500.0,0.00033451,2]
[313920948,1707823866597,-500.0,0.00033451,2]
[313920949,1707823866609,-1644.37,0.00033451,2]
[313920950,1707823866619,-4024.1,0.00033451,2]
[313920951,1707823866628,-504.78,0.00033451,2]
[313920952,1707823866637,-563.36,0.00033451,2]
[313920953,1707823866646,-538.99,0.00033451,2]
[313920954,1707823866656,-500.0,0.00033451,2]
[313920955,1707823866666,-1049.6,0.00033451,2]
[313920956,1707823866675,-513.64,0.00033451,2]
[313920957,1707823866685,-1057.39,0.00033451,2]
[313920958,1707823866694,-300.0,0.00033499,2]
[313920959,1707823866704,-731.9218721,0.000335,2]
[313920960,1707823866713,-455.0,0.000335,22]
[313920961,1707823866723,-701.87,0.000335,2]
[313920962,1707823866732,-701.87,0.000335,2]
[313920963,1707823866742,-701.87,0.000335,2]
[313920964,1707823866752,-701.87,0.000335,2]
[313920965,1707823866762,-701.87,0.000335,2]
[313920966,1707823866772,-701.87,0.000335,2]
[313920967,1707823866781,-701.87,0.000335,2]
[313920968,1707823866790,-701.87,0.000335,2]
[313920969,1707823866800,-701.87,0.000335,2]
[313920970,1707823866809,-701.87,0.000335,2]
[313920971,1707823866818,-701.87,0.000335,2]
[313920972,1707823866827,-701.87,0.000335,2]
[313920973,1707823866836,-701.87,0.000335,2]
[313920974,1707823866846,-701.87,0.000335,2]
[313920975,1707823866856,-701.87,0.000335,2]
[313920976,1707823866865,-701.87,0.000335,2]
[313920977,1707823866874,-701.87,0.000335,2]
[313920978,1707823866884,-701.87,0.000335,2]
[313920979,1707823866894,-701.87,0.000335,2]
[313920980,1707823866903,-701.87,0.000335,2]
[313920981,1707823866912,-837.05,0.0003353,2]
[313920982,1707823866922,-595.48,0.00033588,2]
[313920983,1707823866931,-720.1,0.00033598,2]
[313920984,1707823866940,-1133.91,0.00033598,2]
[313920985,1707823866949,-500.0,0.00033598,2]
[313920986,1707823866958,-562.4,0.00033598,2]
[313920987,1707823866967,-152.0,0.00033667,4]
[313920988,1707823866977,-5054.41019247,0.00033698,5]
[313920989,1707823866986,-1000.0,0.00033698,5]
[313920990,1707823866995,-484.54793203,0.000337,2]
[313920991,1707823867004,-541.25,0.00033725,2]
[313920992,1707823867013,-1228.16,0.00033725,2]
[313920993,1707823867022,-1025.19,0.00033725,2]
[313920994,1707823867032,-559.56511093,0.00033725,2]
[313920995,1707823867041,-1474.43,0.00033725,2]
[313920996,1707823867051,-835.02,0.00033725,2]
[313920997,1707823867060,-714.04,0.00033725,2]
[313920998,1707823867069,-593.59360999,0.00033725,2]
[313920999,1707823867079,-1562.04,0.00033725,2]
[313921000,1707823867089,-1088.36,0.00033725,2]
[313921001,1707823867098,-500.0,0.00033725,2]
[313921002,1707823867109,-682.24,0.00033725,2]
[313921003,1707823867119,-656.5,0.00033725,2]
[313921004,1707823867128,-1750.39,0.00033725,2]
[313921005,1707823867138,-1786.42,0.00033725,2]
[313921006,1707823867147,-242.76800889,0.00033725,2]
[313921007,1707823867157,-799.68,0.00033725,2]
[313921008,1707823867167,-500.0,0.00033725,2]
[313921009,1707823867176,-650.86,0.00033725,2]
[313921010,1707823867186,-500.0,0.00033725,2]
[313921011,1707823867195,-1873.71,0.00033725,2]
[313921012,1707823867205,-1445.49,0.00033725,2]
[313921013,1707823867214,-333.63099996,0.00033725,2]
[313921014,1707823867224,-552.15,0.00033725,2]
[313921015,1707823867234,-296.94787287,0.00033725,2]
[313921016,1707823867243,-500.55,0.00033725,2]
[313921017,1707823867253,-544.89,0.00033725,2]
[313921018,1707823867264,-1167.13,0.00033725,2]
[313921019,1707823867274,-261.29969014,0.00033725,2]
[313921020,1707823867284,-1691.15,0.00033725,2]
[313921021,1707823867294,-500.0,0.00033725,2]
[313921022,1707823867304,-525.08,0.00033725,2]
[313921023,1707823867314,-1396.74,0.00033725,2]
[313921024,1707823867324,-1050.85,0.00033725,2]
[313921025,1707823867334,-562.43,0.00033725,2]
[313921026,1707823867344,-2526.49,0.00033725,2]
[313921027,1707823867353,-587.49,0.00033725,2]
[313921028,1707823867365,-534.84430672,0.00033725,2]
[313921029,1707823867376,-22013.21,0.00033725,2]
[313921030,1707823867386,-500.0,0.00033725,2]
[313921031,1707823867395,-980.47,0.00033725,2]
[313921032,1707823867404,-500.0,0.00033725,2]
[313921033,1707823867414,-500.0,0.00033725,2]
[313921034,1707823867423,-1644.37,0.00033725,2]
[313921035,1707823867432,-4024.1,0.00033725,2]
[313921036,1707823867442,-504.78,0.00033725,2]
[313921037,1707823867452,-563.36,0.00033725,2]
[313921038,1707823867461,-538.99,0.00033725,2]
[313921039,1707823867471,-500.0,0.00033725,2]
[313921040,1707823867481,-1049.6,0.00033725,2]
[313921041,1707823867491,-513.64,0.00033725,2]
[313921042,1707823867500,-1057.39,0.00033725,2]
[313921043,1707823867509,-150.0,0.00033742,2]
[313921044,1707823867519,-151.65,0.0003379,2]
[313921045,1707823867528,-151.0,0.00033835,4]
[313921046,1707823867538,-720.1,0.00033872,2]
[313921047,1707823867548,-1133.91,0.00033872,2]
[313921048,1707823867557,-500.0,0.00033872,2]
[313921049,1707823867567,-562.4,0.00033872,2]
[313921050,1707823867576,-158.21780803,0.000339,2]
[313921051,1707823867586,-158.217808,0.000339,2]
[313921052,1707823867595,-158.217808,0.000339,2]
[313921053,1707823867605,-1000.0,0.00033972,6]
[313921054,1707823867614,-173262.0,0.0003398,4]
[313921055,1707823867624,-500.0,0.00033987,2]
[313921056,1707823867633,-51429.61805403,0.0003399,2]
[313921057,1707823867642,-541.25,0.00033999,2]
[313921058,1707823867652,-1228.16,0.00033999,2]
[313921059,1707823867661,-1025.19,0.00033999,2]
[313921060,1707823867671,-1474.43,0.00033999,2]
[313921061,1707823867680,-835.02,0.00033999,2]
[313921062,1707823867689,-714.04,0.00033999,2]
[313921063,1707823867698,-1562.04,0.00033999,2]
[313921064,1707823867707,-1088.36,0.00033999,2]
[313921065,1707823867717,-500.0,0.00033999,2]
[313921066,1707823867726,-682.24,0.00033999,2]
[313921067,1707823867735,-656.5,0.00033999,2]
[313921068,1707823867744,-1750.39,0.00033999,2]
[313921069,1707823867754,-1786.42,0.00033999,2]
[313921070,1707823867763,-799.68,0.00033999,2]
[313921071,1707823867774,-500.0,0.00033999,2]
[313921072,1707823867783,-650.86,0.00033999,2]
[313921073,1707823867793,-499.20957728,0.00033999,2]
[313921074,1707823867802,-1873.71,0.00033999,2]
[313921075,1707823867812,-1445.49,0.00033999,2]
[313921076,1707823867822,-552.15,0.00033999,2]
[313921077,1707823867831,-500.55,0.00033999,2]
[313921078,1707823867840,-544.89,0.00033999,2]
[313921079,1707823867850,-1167.13,0.00033999,2]
[313921080,1707823867861,-1691.15,0.00033999,2]
[313921081,1707823867870,-500.0,0.00033999,2]
[313921082,1707823867880,-525.08,0.00033999,2]
[313921083,1707823867889,-1396.74,0.00033999,2]
[313921084,1707823867899,-1050.85,0.00033999,2]
[313921085,1707823867909,-562.43,0.00033999,2]
[313921086,1707823867918,-2526.49,0.00033999,2]
[313921087,1707823867927,-587.49,0.00033999,2]
[313921088,1707823867937,-22013.21,0.00033999,2]
[313921089,1707823867946,-500.0,0.00033999,2]
[313921090,1707823867956,-980.47,0.00033999,2]
[313921091,1707823867965,-500.0,0.00033999,2]
[313921092,1707823867975,-500.0,0.00033999,2]
[313921093,1707823867984,-1644.37,0.00033999,2]
[313921094,1707823867993,-4024.1,0.00033999,2]
[313921095,1707823868002,-504.78,0.00033999,2]
[313921096,1707823868012,-563.36,0.00033999,2]
[313921097,1707823868022,-538.99,0.00033999,2]
[313921098,1707823868031,-500.0,0.00033999,2]
[313921099,1707823868041,-1049.6,0.00033999,2]
[313921100,1707823868050,-513.64,0.00033999,2]
[313921101,1707823868060,-1057.39,0.00033999,2]
[313921102,1707823868070,-50000.0,0.00034,4]
[313921103,1707823868080,-767.48185692,0.00034,4]
[313921104,1707823868089,-155.0,0.00034,4]
[313921105,1707823868098,-3099.91481304,0.00034,4]
[313921106,1707823868109,-29599.9976898,0.00034,7]
[313921107,1707823868119,-1500.0,0.00034,3]
[313921108,1707823868128,-300.0,0.00034,35]
[313921109,1707823868137,-455.0,0.00034,23]
[313921110,1707823868147,-154.33,0.00034,2]
[313921111,1707823868157,-154.33,0.00034,2]
[313921112,1707823868166,-154.33,0.00034,2]
[313921113,1707823868176,-154.33,0.00034,2]
[313921114,1707823868186,-339.50458929,0.00034031,2]
[313921115,1707823868195,-306.24,0.00034045,2]
[313921116,1707823868205,-200.0,0.00034052,2]
[313921117,1707823868215,-1000.0,0.000341,15]
[313921118,1707823868224,-720.1,0.00034146,2]
[313921119,1707823868234,-1133.91,0.00034146,2]
[313921120,1707823868244,-500.0,0.00034146,2]
[313921121,1707823868253,-562.4,0.00034146,2]
[313921122,1707823868263,-1000.0,0.000342,2]
[313921123,1707823868272,-4141.0,0.000342,2]
[313921124,1707823868282,-1000.0,0.00034246,7]
[313921125,1707823868291,-541.25,0.00034273,2]
[313921126,1707823868301,-1228.16,0.00034273,2]
[313921127,1707823868311,-1025.19,0.00034273,2]
[313921128,1707823868321,-1474.43,0.00034273,2]
[313921129,1707823868332,-835.02,0.00034273,2]
[313921130,1707823868342,-714.04,0.00034273,2]
[313921131,1707823868352,-1562.04,0.00034273,2]
[313921132,1707823868364,-1088.36,0.00034273,2]
[313921133,1707823868408,-500.0,0.00034273,2]
[313921134,1707823868418,-682.24,0.00034273,2]
[313921135,1707823868428,-656.5,0.00034273,2]
[313921136,1707823868437,-1750.39,0.00034273,2]
[313921137,1707823868447,-1786.42,0.00034273,2]
[313921138,1707823868457,-799.68,0.00034273,2]
[313921139,1707823868466,-230.95346593,0.00034273,2]
[313921140,1707823868476,-650.86,0.00034273,2]
[313921141,1707823868486,-1873.71,0.00034273,2]
[313921142,1707823868496,-1445.49,0.00034273,2]
[313921143,1707823868505,-552.15,0.00034273,2]
[313921144,1707823868515,-500.55,0.00034273,2]
[313921145,1707823868526,-544.89,0.00034273,2]
[313921146,1707823868535,-1167.13,0.00034273,2]
[313921147,1707823868545,-1691.15,0.00034273,2]
[313921148,1707823868556,-500.0,0.00034273,2]
[313921149,1707823868565,-525.08,0.00034273,2]
[313921150,1707823868574,-1396.74,0.00034273,2]
[313921151,1707823868585,-1050.85,0.00034273,2]
[313921152,1707823868595,-562.43,0.00034273,2]
[313921153,1707823868607,-2526.49,0.00034273,2]
[313921154,1707823868617,-587.49,0.00034273,2]
[313921155,1707823868626,-22013.21,0.00034273,2]
[313921156,1707823868636,-500.0,0.00034273,2]
[313921157,1707823868645,-980.47,0.00034273,2]
[313921158,1707823868654,-500.0,0.00034273,2]
[313921159,1707823868663,-500.0,0.00034273,2]
[313921160,1707823868673,-1644.37,0.00034273,2]
[313921161,1707823868683,-4024.1,0.00034273,2]
[313921162,1707823868692,-504.78,0.00034273,2]
[313921163,1707823868702,-563.36,0.00034273,2]
[313921164,1707823868711,-538.99,0.00034273,2]
[313921165,1707823868720,-500.0,0.00034273,2]
[313921166,1707823868730,-1049.6,0.00034273,2]
[313921167,1707823868739,-513.64,0.00034273,2]
[313921168,1707823868749,-1057.39,0.00034273,2]
[313921169,1707823868758,-315.0,0.000343,7]
[313921170,1707823868768,-805.33,0.000343,10]
[313921171,1707823868778,-239.46563263,0.00034397,2]
[313921172,1707823868787,-199933.41062425,0.000344,2]
[313921173,1707823868797,-1000.0,0.000344,2]
[313921174,1707823868807,-720.1,0.0003442,2]
[313921175,1707823868816,-1133.91,0.0003442,2]
[313921176,1707823868826,-500.0,0.0003442,2]
[313921177,1707823868836,-562.4,0.0003442,2]
[313921178,1707823868845,-205.0,0.00034442,15]
[313921179,1707823868856,-455.0,0.000345,23]
[313921180,1707823868866,-427.974607,0.0003452,2]
[313921181,1707823868875,-3193.431542,0.0003452,2]
[313921182,1707823868885,-1000.0,0.0003452,8]
[313921183,1707823868894,-150.0,0.0003452,7]
[313921184,1707823868903,-150.0,0.0003452,7]
[313921185,1707823868913,-159.13559447,0.0003452,7]
[313921186,1707823868922,-150.0,0.0003452,7]
[313921187,1707823868931,-150.0,0.0003452,7]
[313921188,1707823868940,-150.0,0.0003452,7]
[313921189,1707823868950,-150.0,0.0003452,7]
[313921190,1707823868959,-150.0,0.0003452,7]
[313921191,1707823868968,-155.46616425,0.0003452,7]
[313921192,1707823868977,-150.0,0.0003452,7]
[313921193,1707823868986,-151.00615865,0.0003452,7]
[313921194,1707823868995,-150.0,0.0003452,7]
[313921195,1707823869005,-9107.63,0.00034521,2]
[313921196,1707823869015,-151.0,0.00034526,2]
[313921197,1707823869024,-5000.0,0.00034531,2]
[313921198,1707823869033,-541.25,0.00034547,2]
[313921199,1707823869043,-1228.16,0.00034547,2]
[313921200,1707823869052,-1025.19,0.00034547,2]
[313921201,1707823869062,-1474.43,0.00034547,2]
[313921202,1707823869071,-835.02,0.00034547,2]
[313921203,1707823869081,-714.04,0.00034547,2]
[313921204,1707823869091,-1562.04,0.00034547,2]
[313921205,1707823869101,-1088.36,0.00034547,2]
[313921206,1707823869113,-407.64506653,0.00034547,2]
[313921207,1707823869122,-682.24,0.00034547,2]
[313921208,1707823869132,-656.5,0.00034547,2]
[313921209,1707823869142,-1750.39,0.00034547,2]
[313921210,1707823869153,-1786.42,0.00034547,2]
[313921211,1707823869163,-799.68,0.00034547,2]
[313921212,1707823869173,-650.86,0.00034547,2]
[313921213,1707823869183,-1873.71,0.00034547,2]
[313921214,1707823869193,-1445.49,0.00034547,2]
[313921215,1707823869203,-552.15,0.00034547,2]
[313921216,1707823869213,-500.55,0.00034547,2]
[313921217,1707823869223,-544.89,0.00034547,2]
[313921218,1707823869233,-1167.13,0.00034547,2]
[313921219,1707823869243,-1691.15,0.00034547,2]
[313921220,1707823869253,-500.0,0.00034547,2]
[313921221,1707823869263,-525.08,0.00034547,2]
[313921222,1707823869272,-1396.74,0.00034547,2]
[313921223,1707823869282,-1050.85,0.00034547,2]
[313921224,1707823869292,-562.43,0.00034547,2]
[313921225,1707823869302,-2526.49,0.00034547,2]
[313921226,1707823869313,-587.49,0.00034547,2]
[313921227,1707823869323,-22013.21,0.00034547,2]
[313921228,1707823869334,-980.47,0.00034547,2]
[313921229,1707823869344,-500.0,0.00034547,2]
[313921230,1707823869354,-500.0,0.00034547,2]
[313921231,1707823869367,-570.33609006,0.00034547,2]
[313921232,1707823869378,-1644.37,0.00034547,2]
[313921233,1707823869387,-4024.1,0.00034547,2]
[313921234,1707823869398,-504.78,0.00034547,2]
[313921235,1707823869408,-563.36,0.00034547,2]
[313921236,1707823869419,-538.99,0.00034547,2]
[313921237,1707823869582,-321.26632046,0.00034547,2]
[313921238,1707823869592,-1049.6,0.00034547,2]
[313921239,1707823869601,-513.64,0.00034547,2]
[313921240,1707823869611,-1057.39,0.00034547,2]
[313921241,1707823869620,-150.0,0.00034548,10]
[313921242,1707823869629,-150.0,0.00034593,7]
[313921243,1707823869639,-277.0,0.000346,120]
[313921244,1707823869648,-25000.0,0.000346,2]
[313921245,1707823869657,-701.87,0.000346,2]
[313921246,1707823869667,-701.87,0.000346,2]
[313921247,1707823869676,-701.87,0.000346,2]
[313921248,1707823869685,-701.87,0.000346,2]
[313921249,1707823869695,-701.87,0.000346,2]
[313921250,1707823869704,-701.87,0.000346,2]
[313921251,1707823869714,-701.87,0.000346,2]
[313921252,1707823869723,-701.87,0.000346,2]
[313921253,1707823869732,-701.87,0.000346,2]
[313921254,1707823869742,-701.87,0.000346,2]
[313921255,1707823869752,-701.87,0.000346,2]
[313921256,1707823869761,-701.87,0.000346,2]
[313921257,1707823869771,-701.87,0.000346,2]
[313921258,1707823869780,-701.87,0.000346,2]
[313921259,1707823869790,-701.87,0.000346,2]
[313921260,1707823869799,-701.87,0.000346,2]
[313921261,1707823869809,-701.87,0.000346,2]
[313921262,1707823869818,-701.87,0.000346,2]
[313921263,1707823869827,-701.87,0.000346,2]
[313921264,1707823869837,-701.87,0.000346,2]
[313921265,1707823869846,-150.0,0.00034607,2]
[313921266,1707823869856,-155.0,0.00034612,2]
[313921267,1707823869866,-158.0,0.00034656,2]
[313921268,1707823869875,-150.0,0.00034665,7]
[313921269,1707823869884,-720.1,0.00034693,2]
[313921270,1707823869894,-1133.91,0.00034693,2]
[313921271,1707823869903,-500.0,0.00034693,2]
[313921272,1707823869913,-562.4,0.00034693,2]
[313921273,1707823869922,-151.65,0.00034703,2]
[313921274,1707823869931,-150.0,0.00034738,7]
[313921275,1707823869940,-6879.00704832,0.00034749,2]
[313921276,1707823869949,-418.5,0.00034749,2]
[313921277,1707823869959,-418.5,0.00034749,2]
[313921278,1707823869968,-418.5,0.00034749,2]
[313921279,1707823869978,-418.5,0.00034749,2]
[313921280,1707823869987,-418.5,0.00034749,2]
[313921281,1707823869996,-853.31,0.00034774,2]
[313921282,1707823870005,-155.73,0.00034774,2]
[313921283,1707823870015,-666.27,0.00034774,2]
[313921284,1707823870024,-150.0,0.00034774,2]
[313921285,1707823870034,-150.0,0.00034774,2]
[313921286,1707823870044,-641.961911,0.00034794,2]
[313921287,1707823870053,-4790.147313,0.00034794,2]
[313921288,1707823870063,-350.74489284,0.00034794,3]
[313921289,1707823870072,-616.58716464,0.00034794,9]
[313921290,1707823870081,-1000.0,0.000348,10]
[313921291,1707823870090,-200.0,0.000348,8]
[313921292,1707823870099,-845.84,0.000348,10]
[313921293,1707823870108,-150.0,0.0003481,7]
[313921294,1707823870117,-541.25,0.00034821,2]
[313921295,1707823870126,-1228.16,0.00034821,2]
[313921296,1707823870135,-1025.19,0.00034821,2]
[313921297,1707823870144,-1474.43,0.00034821,2]
[313921298,1707823870153,-835.02,0.00034821,2]
[313921299,1707823870162,-714.04,0.00034821,2]
[313921300,1707823870171,-1562.04,0.00034821,2]
[313921301,1707823870181,-1088.36,0.00034821,2]
[313921302,1707823870191,-682.24,0.00034821,2]
[313921303,1707823870200,-656.5,0.00034821,2]
[313921304,1707823870209,-1750.39,0.00034821,2]
[313921305,1707823870218,-1786.42,0.00034821,2]
[313921306,1707823870228,-799.68,0.00034821,2]
[313921307,1707823870236,-650.86,0.00034821,2]
[313921308,1707823870246,-1873.71,0.00034821,2]
[313921309,1707823870255,-1445.49,0.00034821,2]
[313921310,1707823870264,-552.15,0.00034821,2]
[313921311,1707823870273,-500.55,0.00034821,2]
[313921312,1707823870282,-544.89,0.00034821,2]
[313921313,1707823870292,-1167.13,0.00034821,2]
[313921314,1707823870301,-1691.15,0.00034821,2]
[313921315,1707823870310,-500.0,0.00034821,2]
[313921316,1707823870319,-525.08,0.00034821,2]
[313921317,1707823870328,-1396.74,0.00034821,2]
[313921318,1707823870337,-1050.85,0.00034821,2]
[313921319,1707823870346,-562.43,0.00034821,2]
[313921320,1707823870356,-2526.49,0.00034821,2]
[313921321,1707823870366,-587.49,0.00034821,2]
[313921322,1707823870376,-22013.21,0.00034821,2]
[313921323,1707823870385,-980.47,0.00034821,2]
[313921324,1707823870395,-500.0,0.00034821,2]
[313921325,1707823870405,-500.0,0.00034821,2]
[313921326,1707823870415,-1644.37,0.00034821,2]
[313921327,1707823870425,-4024.1,0.00034821,2]
[313921328,1707823870434,-504.78,0.00034821,2]
[313921329,1707823870444,-563.36,0.00034821,2]
[313921330,1707823870455,-538.99,0.00034821,2]
[313921331,1707823870464,-1049.6,0.00034821,2]
[313921332,1707823870473,-513.64,0.00034821,2]
[313921333,1707823870483,-1057.39,0.00034821,2]
[313921334,1707823870492,-181.88127678,0.00034825,2]
[313921335,1707823870501,-150.0,0.00034869,7]
[313921336,1707823870510,-150.0,0.00034882,7]
[313921337,1707823870520,-258.73505277,0.00034893,7]
[313921338,1707823870529,-9018.0041854,0.000349,4]
[313921339,1707823870540,-150.0,0.000349,7]
[313921340,1707823870549,-3885.80997019,0.000349,10]
[313921341,1707823870558,-1350.98734255,0.000349,2]
[313921342,1707823870568,-5894.13381731,0.000349,2]
[313921343,1707823870577,-5894.1338173,0.000349,2]
[313921344,1707823870588,-5894.1338173,0.000349,2]
[313921345,1707823870598,-5894.1338173,0.000349,2]
[313921346,1707823870608,-156.75392784,0.00034907,7]
[313921347,1707823870618,-339.50458929,0.00034921,2]
[313921348,1707823870628,-855.949215,0.00034931,2]
[313921349,1707823870638,-6386.863084,0.00034931,2]
[313921350,1707823870647,-154.08080949,0.00034945,7]
[313921351,1707823870656,-150.0,0.00034955,7]
[313921352,1707823870665,-150.49090306,0.00034958,7]
[313921353,1707823870674,-720.1,0.00034967,2]